fUST/lending_fUST_20250527
["ID","MTS","AMOUNT","RATE_DAILY","PERIOD"]
[362449761,1748299840025,-300.0,0.00022189,2]
[362449763,1748299840037,-69.70775699,0.00022465,2]
[362449766,1748299840047,-593.96,0.00022465,2]
[362449768,1748299840057,-221.84991633,0.00022465,2]
[362449770,1748299840069,-208.15008367,0.00022465,2]
[362449772,1748299840080,-430.0,0.00022465,2]
[362449774,1748299840090,-13.90717309,0.00022465,2]
[362449777,1748299840102,-1102.57282691,0.00022465,2]
[362449779,1748299840112,-430.0,0.00022465,2]
[362449781,1748299840121,-1302.39,0.00022465,2]
[362449783,1748299840131,-2000.0,0.00022498,2]
[362449785,1748299840141,-430.0,0.00022506,2]
[362449787,1748299840151,-301.28015164,0.00022506,2]
[362449789,1748299840160,-430.0,0.00022506,2]
[362449791,1748299840171,-648.49,0.00022506,2]
[362449793,1748299840180,-430.0,0.00022506,2]
[362449795,1748299840191,-430.0,0.00022506,2]
[362449797,1748299840201,-430.0,0.00022506,2]
[362449799,1748299840210,-430.0,0.00022506,2]
[362449801,1748299840220,-248.9232141,0.00022506,2]
[362449804,1748299840230,-430.0,0.00022506,2]
[362449806,1748299840240,-430.0,0.00022506,2]
[362449808,1748299840250,-430.0,0.00022506,2]
[362449810,1748299840260,-430.0,0.00022506,2]
[362449812,1748299840270,-278.22,0.00022507,2]
[362449814,1748299840279,-430.0,0.00022508,2]
[362449816,1748299840289,-430.0,0.00022508,2]
[362449818,1748299840299,-430.0,0.00022509,2]
[362449819,1748299840309,-430.0,0.00022509,2]
[362449820,1748299840319,-820.64,0.00022509,2]
[362449821,1748299840329,-547.65,0.00022509,2]
[362449822,1748299840338,-1391.16,0.00022509,2]
[362449823,1748299840348,-473.56,0.00022509,2]
[362449824,1748299840359,-450.82,0.00022509,2]
[362449825,1748299840368,-664.62,0.00022509,2]
[362449826,1748299840378,-1063.13,0.00022509,2]
[362449827,1748299840388,-899.57,0.00022509,2]
[362449828,1748299840398,-151.0,0.00022514,2]
[362449829,1748299840408,-151.0,0.00022514,2]
[362449830,1748299840417,-151.0,0.00022514,2]
[362449831,1748299840427,-151.0,0.00022514,2]
[362449832,1748299840437,-151.0,0.00022514,2]
[362449833,1748299840447,-151.0,0.00022514,2]
[362449834,1748299840457,-151.0,0.00022514,2]
[362449835,1748299840467,-151.0,0.00022514,2]
[362449836,1748299840476,-151.0,0.00022514,2]
[362449837,1748299840488,-151.0,0.00022514,2]
[362449838,1748299840497,-151.0,0.00022514,2]
[362449839,1748299840507,-151.0,0.00022514,2]
[362449840,1748299840517,-151.0,0.00022514,2]
[362449841,1748299840526,-151.0,0.00022514,2]
[362449842,1748299840536,-151.0,0.00022514,2]
[362449843,1748299840547,-207.4,0.00022514,2]
[362449844,1748299840556,-2500.0,0.00022517,2]
[362449845,1748299840566,-894.64583333,0.00022518,2]
[362449846,1748299840576,-160.0,0.00022518,2]
[362449847,1748299840585,-212.59253735,0.00022518,2]
[362449848,1748299840596,-258.10698352,0.00022521,7]
[362449849,1748299840606,-759.62009,0.00022585,2]
[362449850,1748299840615,-759.62009,0.00022585,2]
[362449851,1748299840625,-2937.15864391,0.00022585,2]
[362449852,1748299841063,430.0,0.00019178,2]
[362449853,1748299841314,430.0,0.00019452,2]
[362449854,1748299841562,430.0,0.00019726,2]
[362449859,1748299842812,-28.94650101,0.0002,2]
[362449865,1748299846792,-401.05349899,0.0002,2]
[362449866,1748299846802,-430.0,0.00020273,2]
[362449867,1748299846811,-430.0,0.00020547,2]
[362449868,1748299846821,-430.0,0.00020821,2]
[362449869,1748299846830,-391.07152594,0.00021095,2]
[362449870,1748299846840,-2062.84135609,0.00022585,2]
[362449871,1748299846849,-430.0,0.00022597,2]
[362449872,1748299846859,-2500.0,0.00022613,2]
[362449873,1748299846868,-258.10698352,0.00022624,7]
[362449874,1748299846878,-500.0,0.00022645,2]
[362449875,1748299846887,-535.61328147,0.00022645,2]
[362449876,1748299846898,-600.0,0.00022645,2]
[362449877,1748299846907,-500.0,0.00022645,2]
[362449878,1748299846920,-501.1941326,0.00022645,2]
[362449879,1748299846930,-1000.0,0.00022663,2]
[362449880,1748299846940,-258.10698352,0.00022728,7]
[362449881,1748299846949,-530.0,0.00022739,2]
[362449882,1748299846960,-2704.46,0.00022739,2]
[362449883,1748299846970,-498.15,0.00022739,2]
[362449884,1748299846980,-2976.96,0.00022739,2]
[362449885,1748299846989,-734.66,0.00022739,2]
[362449886,1748299846998,-593.96,0.00022739,2]
[362449887,1748299847010,-430.0,0.00022739,2]
[362449888,1748299847021,-430.0,0.00022739,2]
[362449889,1748299847030,-1116.48,0.00022739,2]
[362449890,1748299847039,-430.0,0.00022739,2]
[362449891,1748299847048,-1302.39,0.00022739,2]
[362449892,1748299847058,-1000.0,0.00022744,2]
[362449893,1748299847067,-1000.0,0.00022744,2]
[362449894,1748299847077,-1000.0,0.00022744,2]
[362449895,1748299847087,-511.54817798,0.00022744,2]
[362449896,1748299847097,-1000.0,0.00022748,2]
[362449897,1748299847107,-500.0,0.00022748,2]
[362449898,1748299847116,-430.0,0.0002278,2]
[362449899,1748299847125,-430.0,0.0002278,2]
[362449900,1748299847136,-648.49,0.0002278,2]
[362449901,1748299847145,-212.140552,0.0002278,7]
[362449902,1748299847155,-212.140552,0.0002278,7]
[362449903,1748299847165,-430.0,0.0002278,2]
[362449904,1748299847175,-211.71510551,0.0002278,2]
[362449905,1748299847184,-430.0,0.0002278,2]
[362449906,1748299847194,-510.0,0.0002278,2]
[362449907,1748299847304,-430.0,0.0002278,2]
[362449908,1748299847314,-151.0,0.0002278,7]
[362449909,1748299847323,-430.0,0.0002278,2]
[362449910,1748299847333,-430.0,0.0002278,2]
[362449911,1748299847343,-430.0,0.0002278,2]
[362449912,1748299847353,-430.0,0.00022782,2]
[362449913,1748299847363,-430.0,0.00022782,2]
[362449914,1748299847372,-430.0,0.00022783,2]
[362449915,1748299847382,-430.0,0.00022783,2]
[362449916,1748299847391,-820.64,0.00022783,2]
[362449917,1748299847402,-547.65,0.00022783,2]
[362449918,1748299847412,-1391.16,0.00022783,2]
[362449919,1748299847421,-473.56,0.00022783,2]
[362449920,1748299847431,-450.82,0.00022783,2]
[362449921,1748299847441,-664.62,0.00022783,2]
[362449922,1748299847452,-1063.13,0.00022783,2]
[362449923,1748299847462,-899.57,0.00022783,2]
[362449924,1748299847471,-3000.0,0.00022788,2]
[362449925,1748299847481,-258.10698352,0.00022831,8]
[362449926,1748299847491,-151.0,0.00022871,7]
[362449927,1748299847501,-430.0,0.00022871,2]
[362449928,1748299847511,-621.8,0.00022885,2]
[362449929,1748299847520,-4000.0,0.00022896,3]
[362449930,1748299847529,-500.0,0.000229,2]
[362449931,1748299847539,-258.10698352,0.00022934,8]
[362449932,1748299847549,-352.90796809,0.00022941,2]
[362449933,1748299847559,-500.0,0.00022944,2]
[362449934,1748299847568,-156.01318446,0.00022944,2]
[362449935,1748299847579,-500.0,0.00022944,2]
[362449936,1748299847588,-500.0,0.00022944,2]
[362449937,1748299847598,-500.0,0.00022944,2]
[362449938,1748299847608,-2704.46,0.00023013,2]
[362449939,1748299847618,-498.15,0.00023013,2]
[362449940,1748299847629,-2976.96,0.00023013,2]
[362449941,1748299847640,-734.66,0.00023013,2]
[362449942,1748299847651,-593.96,0.00023013,2]
[362449943,1748299847661,-298.22,0.00023013,2]
[362449944,1748299847672,-411.25,0.00023013,2]
[362449945,1748299847682,-1116.48,0.00023013,2]
[362449946,1748299847695,-430.0,0.00023013,2]
[362449947,1748299847705,-1302.39,0.00023013,2]
[362449948,1748299847715,-176.0,0.00023014,7]
[362449949,1748299847726,-176.2486289,0.00023014,2]
[362449950,1748299847738,-571.7598589,0.00023014,2]
[362449951,1748299847748,-352.4972578,0.00023014,2]
[362449952,1748299847758,-1281.326024,0.00023014,2]
[362449953,1748299847768,-350.5352052,0.00023014,2]
[362449954,1748299847779,-768.6678249,0.00023014,2]
[362449955,1748299847788,-174.3002904,0.00023014,2]
[362449956,1748299847798,-1149.3848112,0.00023014,2]
[362449957,1748299847808,-176.2486289,0.00023014,2]
[362449958,1748299847818,-352.4972578,0.00023014,2]
[362449959,1748299847827,-759.62009,0.00023014,2]
[362449960,1748299847837,-759.62009,0.00023014,2]
[362449961,1748299847846,-258.10698352,0.00023038,8]
[362449962,1748299847856,-182.54,0.00023054,2]
[362449963,1748299847866,-430.0,0.00023054,2]
[362449964,1748299847876,-648.49,0.00023054,2]
[362449965,1748299847885,-301.61946089,0.00023054,2]
[362449966,1748299847894,-430.0,0.00023054,2]
[362449967,1748299847904,-430.0,0.00023054,2]
[362449968,1748299847913,-430.0,0.00023054,2]
[362449969,1748299847922,-430.0,0.00023054,2]
[362449970,1748299847932,-564.51936208,0.00023054,2]
[362449971,1748299847941,-238.24,0.00023056,2]
[362449972,1748299847951,-430.0,0.00023056,2]
[362449973,1748299847961,-430.0,0.00023057,2]
[362449974,1748299847971,-430.0,0.00023057,2]
[362449975,1748299847980,-820.64,0.00023057,2]
[362449976,1748299847989,-547.65,0.00023057,2]
[362449977,1748299847999,-1391.16,0.00023057,2]
[362449978,1748299848009,-473.56,0.00023057,2]
[362449979,1748299848018,-450.82,0.00023057,2]
[362449980,1748299848027,-664.62,0.00023057,2]
[362449981,1748299848037,-1063.13,0.00023057,2]
[362449982,1748299848047,-899.57,0.00023057,2]
[362449983,1748299848056,-3000.0,0.00023065,2]
[362449984,1748299848066,-258.10698352,0.00023141,8]
[362449985,1748299848077,-430.0,0.00023145,2]
[362449986,1748299848086,-500.7687813,0.00023193,2]
[362449987,1748299848096,-1200.0,0.00023193,2]
[362449988,1748299848105,-1000.0,0.00023193,2]
[362449989,1748299848114,-1500.0,0.00023211,2]
[362449990,1748299848123,-258.10698352,0.00023245,8]
[362449991,1748299848133,-2704.46,0.00023287,2]
[362449992,1748299848142,-498.15,0.00023287,2]
[362449993,1748299848152,-2976.96,0.00023287,2]
[362449994,1748299848162,-734.66,0.00023287,2]
[362449995,1748299848171,-593.96,0.00023287,2]
[362449996,1748299848181,-1116.48,0.00023287,2]
[362449997,1748299848191,-430.0,0.00023287,2]
[362449998,1748299848200,-1302.39,0.00023287,2]
[362449999,1748299848209,-1500.0,0.00023292,2]
[362450000,1748299848219,-1500.0,0.00023292,2]
[362450001,1748299848229,-1500.0,0.00023292,2]
[362450002,1748299848239,-1500.0,0.00023296,2]
[362450003,1748299848249,-212.140552,0.000233,7]
[362450004,1748299848259,-212.140552,0.000233,7]
[362450005,1748299848269,-151.0,0.000233,7]
[362450006,1748299848279,-10110.72154819,0.000233,4]
[362450007,1748299848288,-430.0,0.00023328,2]
[362450008,1748299848299,-648.49,0.00023328,2]
[362450009,1748299848308,-202.66,0.00023328,2]
[362450010,1748299848318,-430.0,0.00023328,2]
[362450011,1748299848328,-430.0,0.00023328,2]
[362450012,1748299848337,-430.0,0.00023328,2]
[362450013,1748299848347,-430.0,0.0002333,2]
[362450014,1748299848356,-430.0,0.00023331,2]
[362450015,1748299848366,-430.0,0.00023331,2]
[362450016,1748299848376,-820.64,0.00023331,2]
[362450017,1748299848385,-547.65,0.00023331,2]
[362450018,1748299848395,-1391.16,0.00023331,2]
[362450019,1748299848404,-473.56,0.00023331,2]
[362450020,1748299848415,-450.82,0.00023331,2]
[362450021,1748299848424,-664.62,0.00023331,2]
[362450022,1748299848434,-1063.13,0.00023331,2]
[362450023,1748299848444,-899.57,0.00023331,2]
[362450024,1748299848454,-258.10698352,0.00023348,9]
[362450025,1748299848463,-600.0,0.00023356,2]
[362450026,1748299848473,-500.0,0.00023399,2]
[362450027,1748299848482,-430.0,0.00023419,2]
[362450028,1748299848492,-258.10698352,0.00023452,9]
[362450029,1748299848502,-500.0,0.0002347,2]
[362450030,1748299848512,-500.0,0.00023492,2]
[362450031,1748299848522,-1000.0,0.00023492,2]
[362450032,1748299848532,-258.10698352,0.00023555,9]
[362450033,1748299848541,-2704.46,0.00023561,2]
[362450034,1748299848552,-498.15,0.00023561,2]
[362450035,1748299848562,-2976.96,0.00023561,2]
[362450036,1748299848571,-734.66,0.00023561,2]
[362450037,1748299848581,-593.96,0.00023561,2]
[362450038,1748299848590,-1116.48,0.00023561,2]
[362450039,1748299848600,-430.0,0.00023561,2]
[362450040,1748299848610,-759.62009,0.00023561,2]
[362450041,1748299848619,-759.62009,0.00023561,2]
[362450042,1748299848629,-1302.39,0.00023561,2]
[362450043,1748299848638,-430.0,0.00023602,2]
[362450044,1748299848649,-648.49,0.00023602,2]
[362450045,1748299848658,-430.0,0.00023602,2]
[362450046,1748299848668,-430.0,0.00023602,2]
[362450047,1748299848677,-430.0,0.00023602,2]
[362450048,1748299848687,-570.0,0.00023604,2]
[362450049,1748299848701,-430.0,0.00023605,2]
[362450050,1748299848710,-430.0,0.00023605,2]
[362450051,1748299848720,-820.64,0.00023605,2]
[362450052,1748299848731,-547.65,0.00023605,2]
[362450053,1748299848742,-1391.16,0.00023605,2]
[362450054,1748299848752,-473.56,0.00023605,2]
[362450055,1748299848763,-450.82,0.00023605,2]
[362450056,1748299848773,-664.62,0.00023605,2]
[362450057,1748299848784,-1063.13,0.00023605,2]
[362450058,1748299848794,-899.57,0.00023605,2]
[362450059,1748299848805,-3043.3288754,0.00023613,2]
[362450060,1748299848814,-355.881469,0.00023657,2]
[362450061,1748299848824,-258.10698352,0.00023659,9]
[362450062,1748299848834,-193.49975763,0.00023686,2]
[362450063,1748299848844,-430.0,0.00023693,2]
[362450064,1748299848854,-151.0,0.000237,5]
[362450065,1748299848865,-500.0,0.0002371,2]
[362450066,1748299848875,-1800.0,0.00023741,2]
[362450067,1748299848886,-1500.0,0.00023741,2]
[362450068,1748299848896,-2043.5552424,0.00023759,2]
[362450069,1748299848906,-258.10698352,0.00023762,9]
[362450070,1748299848916,-2704.46,0.00023835,2]
[362450071,1748299848927,-498.15,0.00023835,2]
[362450072,1748299848936,-2976.96,0.00023835,2]
[362450073,1748299848946,-734.66,0.00023835,2]
[362450074,1748299848957,-593.96,0.00023835,2]
[362450075,1748299848967,-1116.48,0.00023835,2]
[362450076,1748299848977,-430.0,0.00023835,2]
[362450077,1748299848987,-1302.39,0.00023835,2]
[362450078,1748299848996,-500.0,0.0002384,2]
[362450079,1748299849007,-1000.0,0.0002384,2]
[362450080,1748299849017,-500.0,0.0002384,2]
[362450081,1748299849027,-1000.0,0.00023844,2]
[362450082,1748299849037,-258.10698352,0.00023866,10]
[362450083,1748299849047,-430.0,0.00023876,2]
[362450084,1748299849057,-648.49,0.00023876,2]
[362450085,1748299849068,-212.140552,0.00023876,7]
[362450086,1748299849078,-212.140552,0.00023876,7]
[362450087,1748299849087,-430.0,0.00023876,2]
[362450088,1748299849097,-151.0,0.00023876,7]
[362450089,1748299849107,-430.0,0.00023876,2]
[362450090,1748299849117,-431.87,0.00023876,2]
[362450091,1748299849128,-176.2486289,0.00023878,2]
[362450092,1748299849137,-315.5199103,0.00023878,2]
[362450093,1748299849146,-1143.5197178,0.00023878,2]
[362450094,1748299849156,-430.0,0.00023879,2]
[362450095,1748299849167,-430.0,0.00023879,2]
[362450096,1748299849176,-820.64,0.00023879,2]
[362450097,1748299849187,-547.65,0.00023879,2]
[362450098,1748299849196,-1391.16,0.00023879,2]
[362450099,1748299849206,-473.56,0.00023879,2]
[362450100,1748299849217,-450.82,0.00023879,2]
[362450101,1748299849227,-664.62,0.00023879,2]
[362450102,1748299849236,-1063.13,0.00023879,2]
[362450103,1748299849246,-899.57,0.00023879,2]
[362450104,1748299849255,-215.0738,0.00023883,2]
[362450105,1748299849265,-500.0,0.00023913,2]
[362450106,1748299849275,-430.0,0.00023967,2]
[362450107,1748299849284,-258.10698352,0.00023969,10]
[362450108,1748299849294,-1500.0,0.0002404,2]
[362450109,1748299849304,-3276.95618254,0.00024053,2]
[362450110,1748299849313,-720.1882602,0.00024055,2]
[362450111,1748299849323,-258.10698352,0.00024072,10]
[362450112,1748299849334,-420.0,0.00024107,2]
[362450113,1748299849344,-2704.46,0.00024109,2]
[362450114,1748299849354,-498.15,0.00024109,2]
[362450115,1748299849367,-2976.96,0.00024109,2]
[362450116,1748299849377,-734.66,0.00024109,2]
[362450117,1748299849387,-593.96,0.00024109,2]
[362450118,1748299849397,-1116.48,0.00024109,2]
[362450119,1748299849407,-430.0,0.00024109,2]
[362450120,1748299849416,-1302.39,0.00024109,2]
[362450121,1748299849426,-430.0,0.0002415,2]
[362450122,1748299849436,-648.49,0.0002415,2]
[362450123,1748299849447,-577.78,0.0002415,2]
[362450124,1748299849457,-430.0,0.0002415,2]
[362450125,1748299849466,-759.62009,0.0002415,2]
[362450126,1748299849476,-759.62009,0.0002415,2]
[362450127,1748299849485,-430.0,0.00024153,2]
[362450128,1748299849495,-430.0,0.00024153,2]
[362450129,1748299849510,-820.64,0.00024153,2]
[362450130,1748299849520,-547.65,0.00024153,2]
[362450131,1748299849529,-473.56,0.00024153,2]
[362450132,1748299849539,-1391.16,0.00024153,2]
[362450133,1748299849655,-450.82,0.00024153,2]
[362450134,1748299849665,-664.62,0.00024153,2]
[362450135,1748299849675,-1063.13,0.00024153,2]
[362450136,1748299849684,-899.57,0.00024153,2]
[362450137,1748299849696,-600.432039,0.00024163,3]
[362450138,1748299849706,-258.10698352,0.00024176,10]
[362450139,1748299849716,-158.3064961,0.00024192,2]
[362450140,1748299849726,-430.0,0.00024241,2]
[362450141,1748299849738,-258.10698352,0.00024279,10]
[362450142,1748299849747,-2400.0,0.00024289,2]
[362450143,1748299849757,-1001.0639506,0.00024289,2]
[362450144,1748299849767,-960.0,0.00024315,2]
[362450145,1748299849779,-2234.0,0.00024315,2]
[362450146,1748299849789,-707.0,0.00024315,2]
[362450147,1748299849799,-404.0,0.00024315,2]
[362450148,1748299849809,-258.10698352,0.00024383,11]
[362450149,1748299849819,-2704.46,0.00024383,2]
[362450150,1748299849828,-498.15,0.00024383,2]
[362450151,1748299849839,-2976.96,0.00024383,2]
[362450152,1748299849848,-734.66,0.00024383,2]
[362450153,1748299849858,-593.96,0.00024383,2]
[362450154,1748299849867,-1116.48,0.00024383,2]
[362450155,1748299849877,-430.0,0.00024383,2]
[362450156,1748299849886,-1302.39,0.00024383,2]
[362450157,1748299849896,-430.0,0.00024424,2]
[362450158,1748299849906,-648.49,0.00024424,2]
[362450159,1748299849916,-430.0,0.00024424,2]
[362450160,1748299849926,-430.0,0.00024427,2]
[362450161,1748299849936,-430.0,0.00024427,2]
[362450162,1748299849946,-820.64,0.00024427,2]
[362450163,1748299849955,-547.65,0.00024427,2]
[362450164,1748299849964,-473.56,0.00024427,2]
[362450165,1748299849974,-1391.16,0.00024427,2]
[362450166,1748299849984,-450.82,0.00024427,2]
[362450167,1748299849994,-664.62,0.00024427,2]
[362450168,1748299850003,-1063.13,0.00024427,2]
[362450169,1748299850013,-899.57,0.00024427,2]
[362450170,1748299850023,-212.140552,0.00024431,7]
[362450171,1748299850033,-212.140552,0.00024431,7]
[362450172,1748299850042,-600.0,0.00024452,2]
[362450173,1748299850052,-3276.95618253,0.00024477,2]
[362450174,1748299850061,-258.10698352,0.00024486,11]
[362450175,1748299850071,-500.0,0.000245,2]
[362450176,1748299850081,-500.0,0.000245,2]
[362450177,1748299850090,-500.0,0.000245,2]
[362450178,1748299850102,-500.0,0.000245,2]
[362450179,1748299850112,-430.0,0.00024515,2]
[362450180,1748299850121,-151.0,0.00024515,7]
[362450181,1748299850132,-500.0,0.0002453,2]
[362450182,1748299850141,-500.0,0.00024588,2]
[362450183,1748299850151,-258.10698352,0.0002459,11]
[362450184,1748299850161,-151.0,0.00024657,2]
[362450185,1748299850171,-2704.46,0.00024657,2]
[362450186,1748299850180,-498.15,0.00024657,2]
[362450187,1748299850193,-2976.96,0.00024657,2]
[362450188,1748299850203,-734.66,0.00024657,2]
[362450189,1748299850213,-593.96,0.00024657,2]
[362450190,1748299850223,-1116.48,0.00024657,2]
[362450191,1748299850232,-430.0,0.00024657,2]
[362450192,1748299850241,-1302.39,0.00024657,2]
[362450193,1748299850251,-8796.0700911,0.00024657,7]
[362450194,1748299850260,-6075.46884715,0.00024657,7]
[362450195,1748299850747,430.0,0.00019766,2]
[362450196,1748299858696,430.0,0.00019178,2]
[362450197,1748299858946,430.0,0.00019452,2]
[362450198,1748299859150,430.0,0.00019178,2]
[362450199,1748299859207,315.03,0.00019726,2]
[362450200,1748299859397,430.0,0.00019452,2]
[362450201,1748299859652,430.0,0.00019726,2]
[362450202,1748299860133,430.0,0.00019178,2]
[362450203,1748299860393,430.0,0.00019452,2]
[362450204,1748299860634,430.0,0.00019726,2]
[362450205,1748299863347,430.0,0.00019769,2]
[362450206,1748299869843,430.0,0.00019178,2]
[362450207,1748299870094,430.0,0.00019452,2]
[362450208,1748299870348,430.0,0.00019726,2]
[362450209,1748299871708,430.0,0.00019178,2]
[362450210,1748299871754,430.0,0.00019178,2]
[362450211,1748299871996,430.0,0.00019452,2]
[362450212,1748299872253,430.0,0.00019726,2]
[362450213,1748299885947,274.1686103,0.00019178,2]
[362450214,1748299890843,430.0,0.00019178,2]
[362450215,1748299892334,430.0,0.00019766,2]
[362450216,1748299892676,430.0,0.00019178,2]
[362450217,1748299896309,430.0,0.00019178,2]
[362450218,1748299897168,430.0,0.00019178,2]
[362450219,1748299897409,430.0,0.00019452,2]
[362450220,1748299897642,430.0,0.00019726,2]
[362450221,1748299905194,430.0,0.00019766,2]
[362450222,1748299907588,430.0,0.00019178,2]
[362450223,1748299911077,430.0,0.00019766,2]
[362450224,1748299912818,430.0,0.00019766,2]
[362450225,1748299914711,430.0,0.00019178,2]
[362450226,1748299916045,430.0,0.00019178,2]
[362450227,1748299918718,430.0,0.00019178,2]
[362450228,1748299918968,430.0,0.00019452,2]
[362450229,1748299919209,430.0,0.00019726,2]
[362450230,1748299921219,347.03,0.00019178,2]
[362450231,1748299921687,430.0,0.00019178,2]
[362450232,1748299921948,430.0,0.00019452,2]
[362450233,1748299922134,10000.0,0.00024658,120]
[362450234,1748299922186,430.0,0.00019726,2]
[362450235,1748299929524,430.0,0.00019178,2]
[362450236,1748299932107,430.0,0.00019766,2]
[362450237,1748299933341,608.42,0.00019178,2]
[362450238,1748299933605,608.42,0.00019452,2]
[362450239,1748299933877,608.42,0.00019726,2]
[362450240,1748299941575,430.0,0.00019178,2]
[362450241,1748299941834,430.0,0.00019452,2]
[362450242,1748299942089,440.0,0.00019726,2]
[362450243,1748299946280,5000.0,0.00017585,2]
[362450244,1748299947109,430.0,0.00019766,2]
[362450245,1748299948017,430.0,0.00019768,2]
[362450246,1748299949246,430.0,0.00019766,2]
[362450247,1748299949968,430.0,0.00019178,2]
[362450248,1748299950241,430.0,0.00019452,2]
[362450249,1748299950490,430.0,0.00019726,2]
[362450250,1748299959701,10000.0,0.00021918,30]
[362450251,1748299979808,10000.0,0.00016,2]
[362450252,1748300076688,237.355,0.00024658,120]
[362450254,1748300273281,158.426104,0.00013699,2]
[362450256,1748300535779,14853.7478148,0.00024657,120]
[362450259,1748300735132,-199.10804684,0.00017114,2]
[362450260,1748300735155,-756.1637342,0.00017242,2]
[362450261,1748300735179,-1200.0,0.00017643,2]
[362450262,1748300735201,-2904.36249296,0.00017644,2]
[362450263,1748300747247,-300.0,0.00017643,2]
[362450264,1748300747271,-2820.51857599,0.00017644,2]
[362450266,1748300832126,-2828.94617865,0.00017644,2]
[362450267,1748300832148,-300.0,0.00017874,2]
[362450268,1748300832170,-300.0,0.00017874,2]
[362450269,1748300832195,-300.0,0.00017874,2]
[362450270,1748300832217,-300.0,0.00017874,2]
[362450271,1748300832253,-5425.18733319,0.00017875,2]
[362450272,1748300834103,-1870.21051811,0.00017875,2]
[362450273,1748300834128,-342.5132043,0.000181,2]
[362450274,1748300834155,-207.88272831,0.000181,2]
[362450275,1748300834181,-500.0,0.00018337,2]
[362450276,1748300834205,-500.0,0.00018337,2]
[362450277,1748300834230,-500.0,0.00018337,2]
[362450278,1748300834253,-362.59147303,0.00018337,2]
[362450279,1748300834278,-218.81819079,0.00018337,2]
[362450280,1748300834302,-500.0,0.00018337,2]
[362450281,1748300834328,-13.81298738,0.00018337,2]
[362450282,1748300836084,-486.18701262,0.00018337,2]
[362450283,1748300836110,-500.0,0.00018337,2]
[362450284,1748300836132,-310.56968115,0.00018337,2]
[362450285,1748300837103,-189.43031885,0.00018337,2]
[362450286,1748300837131,-370.24062155,0.00018337,2]
[362450287,1748300847139,-125.05998814,0.00018337,2]
[362450288,1748300847164,-157.32626057,0.00018337,2]
[362450289,1748300847194,-500.0,0.00018337,2]
[362450290,1748300847218,-43.27601604,0.00018337,2]
[362450291,1748300854103,-456.72398396,0.00018337,2]
[362450292,1748300854129,-500.0,0.00018337,2]
[362450293,1748300854153,-500.0,0.00018337,2]
[362450294,1748300854177,-178.32839605,0.00018337,2]
[362450295,1748300854202,-500.0,0.00018337,2]
[362450296,1748300854225,-500.0,0.00018337,2]
[362450297,1748300854249,-500.0,0.00018337,2]
[362450298,1748300854274,-500.0,0.00018337,2]
[362450299,1748300854298,-500.0,0.00018337,2]
[362450300,1748300854322,-500.0,0.00018337,2]
[362450301,1748300854345,-500.0,0.00018337,2]
[362450302,1748300854370,-500.0,0.00018337,2]
[362450303,1748300854393,-500.0,0.00018337,2]
[362450304,1748300854417,-500.0,0.00018337,2]